bitfinex-derivatives/quotes_ETHF0:USTF0_20250220
["timestamp","ask_amount","ask_price","bid_price","bid_amount"]
[1740034019365,1.098,2727.3,2727.2,0.73333]
[1740034019973,0.5911,2727.5,2726.9,2.358]
[1740034020177,17.97891929,2727.6,2727.1,3.2078]
[1740034020469,17.97891929,2727.6,2727.4,0.73326]
[1740034020771,16.35314929,2727.6,2727.4,2.358]
[1740034021371,17.08638929,2727.6,2727.4,2.358]
[1740034022669,16.35314929,2727.6,2727.4,2.358]
[1740034022868,16.35314929,2727.6,2727.5,0.73325]
[1740034023461,16.35314929,2727.6,2727.4,2.358]
[1740034023661,16.35314929,2727.6,2727.4,3.09127]
[1740034023867,16.35314929,2727.6,2727.5,0.73325]
[1740034024069,16.35314929,2727.6,2727.4,3.09127]
[1740034024585,16.35314929,2727.6,2727.5,0.73325]
[1740034025769,15.76354929,2727.6,2727.5,0.73325]
[1740034026971,15.76354929,2727.6,2727.5,1.27285]
[1740034027373,15.76354929,2727.6,2727.5,42.07285]
[1740034028078,15.76354929,2727.6,2727.3,3.94109]
[1740034028268,1.1291,2727.5,2727.4,2.357]
[1740034028573,1.6762,2727.5,2727.4,2.357]
[1740034028967,2.40947,2727.5,2727.3,3.2078]
[1740034029369,0.73329,2727.4,2727.0,2.357]
[1740034029676,1.6762,2727.5,2727.0,3.09038]
[1740034029868,0.73328,2727.4,2727.0,3.09038]
[1740034030069,2.40948,2727.5,2727.0,3.09038]
[1740034030371,0.73328,2727.4,2727.0,3.09038]
[1740034031172,2.40948,2727.5,2727.0,3.09038]
[1740034033179,0.73328,2727.4,2727.0,3.09038]
[1740034033368,1.6762,2727.5,2727.0,3.09038]
[1740034033672,2.40948,2727.5,2727.0,3.09038]
[1740034034376,1.6762,2727.5,2727.0,2.357]
[1740034034864,1.6762,2727.5,2727.1,0.73334]
[1740034035273,2.40947,2727.5,2727.2,0.5352]
[1740034035971,1.6762,2727.5,2727.2,0.5352]
[1740034036172,0.73329,2727.4,2727.2,0.5352]
[1740034036372,0.73329,2727.4,2727.0,3.09037]
[1740034036674,0.73329,2727.4,2727.0,3.62557]
[1740034036978,0.73329,2727.4,2727.0,3.09037]
[1740034037479,2.40947,2727.5,2727.1,0.73336]
[1740034037670,2.40947,2727.5,2727.1,1.32406]
[1740034038078,0.73329,2727.4,2727.1,0.5907]
[1740034038576,2.40946,2727.5,2727.1,1.32405]
[1740034038977,1.1291,2727.5,2727.1,0.5907]
[1740034039279,18.97134929,2727.6,2727.5,0.73325]
[1740034039476,18.97134929,2727.6,2727.5,3.09025]
[1740034040274,15.76354929,2727.6,2727.5,2.357]
[1740034040676,15.76354929,2727.6,2727.5,3.09025]
[1740034041979,15.76354929,2727.6,2727.5,3.68135]
[1740034045376,15.76354929,2727.7,2727.6,0.73323]
[1740034048177,13.62359532,2727.7,2727.6,0.73323]
[1740034053586,14.18869532,2727.7,2727.6,3.09023]
[1740034061592,14.18869532,2727.7,2727.6,6.29803]
[1740034062398,14.18869532,2727.7,2727.6,5.5648]
[1740034064496,14.18869532,2727.7,2727.6,3.2078]
[1740034065895,14.18869532,2727.7,2727.5,2.356]
[1740034066085,0.5764,2727.6,2727.5,2.356]
[1740034066285,0.5764,2727.6,2727.4,0.73327]
[1740034066490,0.5541,2727.5,2727.4,3.08927]
[1740034072800,0.5541,2727.5,2727.2,3.2078]
[1740034072997,1.28738,2727.5,2727.0,0.73338]
[1740034073193,1.28738,2727.5,2727.1,2.356]
[1740034073395,1.28738,2727.5,2727.0,3.08938]
[1740034073396,3.2078,2727.3,2727.0,3.08938]
[1740034073800,0.5391,2727.2,2727.0,3.08938]
[1740034073996,1.1531,2727.1,2727.0,0.73338]
[1740034077094,1.1531,2727.1,2726.9,2.356]
[1740034077296,1.1531,2727.1,2726.7,40.8]
[1740034077504,1.88647,2727.1,2726.6,5.5648]
[1740034078001,1.88647,2727.1,2726.7,40.8]
[1740034078198,1.1531,2727.1,2726.7,40.8]
[1740034078400,1.88647,2727.1,2726.7,40.8]
[1740034078898,0.7334,2727.0,2726.7,40.8]
[1740034081607,0.7334,2727.0,2726.5,0.576]
[1740034081608,0.73344,2726.8,2726.5,0.576]
[1740034081803,0.5548,2726.7,2726.4,0.5604]
[1740034082008,0.5724,2726.6,2726.5,2.357]
[1740034084100,0.5724,2726.6,2726.5,2.9392]
[1740034084700,0.5724,2726.6,2726.4,0.5604]
[1740034084900,0.5724,2726.6,2726.4,2.9174]
[1740034090004,0.5724,2726.6,2726.3,40.8]
[1740034090208,0.73353,2726.5,2726.3,40.8]
[1740034090812,1.30591,2726.6,2726.3,40.8]
[1740034091412,1.3059,2726.6,2726.3,40.8]
[1740034091712,0.5724,2726.6,2726.5,0.73352]
[1740034092017,0.5724,2726.6,2726.3,41.08841257]
[1740034092417,3.2078,2727.0,2726.3,44.29621257]
[1740034092616,3.2078,2727.0,2726.4,0.5707]
[1740034092816,0.5812,2726.9,2726.6,0.73348]
[1740034093211,0.5812,2726.9,2726.5,3.523]
[1740034093413,0.5812,2726.9,2726.5,4.2565]
[1740034093814,0.5812,2726.9,2726.6,0.73349]
[1740034094314,0.5812,2726.9,2726.6,0.73348]
[1740034095413,0.5812,2726.9,2726.5,3.523]
[1740034095817,0.5812,2726.9,2726.6,0.73348]
[1740034096416,0.5812,2726.9,2726.5,3.523]
[1740034096715,0.5812,2726.9,2726.5,4.25651]
[1740034097123,1.31462,2726.9,2726.5,4.25652]
[1740034097322,1.31462,2726.9,2726.5,3.523]
[1740034097523,0.5812,2726.9,2726.5,4.25651]
[1740034097820,0.5812,2726.9,2726.5,3.523]
[1740034098123,0.5812,2726.9,2726.7,0.73347]
[1740034098326,0.5812,2726.9,2726.8,0.73344]
[1740034098619,0.5812,2726.9,2726.7,0.73346]
[1740034099013,0.5812,2726.9,2726.6,0.73348]
[1740034099417,0.5812,2726.9,2726.5,3.523]
[1740034099618,0.5812,2726.9,2726.7,0.73345]
[1740034100120,0.5812,2726.9,2726.5,3.523]
[1740034100521,4.3246,2727.0,2726.7,0.73344]
[1740034100721,4.3246,2727.0,2726.5,3.523]
[1740034101024,3.2078,2727.0,2726.9,0.73341]
[1740034101521,3.2078,2727.0,2726.9,3.09041]
[1740034104426,3.2078,2727.0,2726.9,2.357]
[1740034105028,3.2078,2727.0,2726.9,3.4852]
[1740034106923,3.2078,2727.0,2726.9,4.21861]
[1740034107831,3.2078,2727.0,2726.9,3.4852]
[1740034108827,3.2078,2727.0,2726.9,4.21861]
[1740034109533,3.2078,2727.3,2727.2,0.73333]
[1740034109925,13.62359532,2727.4,2727.0,0.5473]
[1740034110122,13.62359532,2727.4,2727.3,0.73331]
[1740034110425,13.62359532,2727.4,2727.3,3.09031]
[1740034112930,13.62359532,2727.4,2727.3,43.89031]
[1740034113530,3.2078,2727.7,2727.3,43.157]
[1740034113729,3.2078,2727.7,2727.4,1.1368]
[1740034113933,3.2078,2727.7,2727.5,0.73324]
[1740034116232,3.2078,2727.7,2727.4,1.1368]
[1740034116432,3.2078,2727.7,2727.5,0.73324]
[1740034118429,3.2078,2727.7,2727.6,0.73323]
[1740034118631,3.2078,2727.7,2727.4,1.1368]
[1740034119136,3.2078,2727.7,2727.5,0.73325]
[1740034119535,3.2078,2727.7,2727.4,1.1368]
[1740034119735,3.2078,2727.7,2727.6,0.73323]
[1740034125142,3.2078,2727.7,2727.5,0.5823]
[1740034125442,3.2078,2727.7,2727.5,0.73323]
[1740034125634,0.538,2727.6,2727.5,0.73323]
[1740034127441,0.0054932,2727.8,2727.7,0.7332]
[1740034127647,0.0054932,2727.8,2727.7,3.0892]
[1740034128855,0.0054932,2727.8,2727.7,43.8892]
[1740034129750,12.15155166,2727.9,2727.7,43.156]
[1740034129951,12.15155166,2727.9,2727.8,3.94097]
[1740034130556,12.15155166,2727.9,2727.8,44.74097]
[1740034130859,0.5338,2728.5,2727.9,1.83287]
[1740034131157,0.0054932,2728.5,2728.4,0.73301]
[1740034131351,0.0054932,2728.5,2728.4,3.08901]
[1740034132050,0.0054932,2728.5,2728.4,43.88901]
[1740034133854,0.0054932,2728.5,2728.4,44.1871612]
[1740034134560,4.3395,2729.0,2728.4,43.4541512]
[1740034134754,4.3395,2729.0,2728.9,0.73288]
[1740034135060,4.3395,2729.0,2728.9,3.08788]
[1740034135560,4.3395,2729.0,2728.9,2.355]
[1740034139361,4.3395,2729.0,2728.5,0.5386]
[1740034139557,3.2078,2728.7,2728.4,0.73301]
[1740034139760,0.5548,2728.6,2728.0,0.29517828]
[1740034139952,0.5497,2728.5,2728.2,2.355]
[1740034140158,0.5371,2728.4,2728.2,2.355]
[1740034140355,0.5371,2728.4,2728.3,0.73304]
[1740034142365,0.5371,2728.4,2728.2,2.355]
[1740034143264,0.5371,2728.4,2728.2,3.08805]
[1740034143459,0.5497,2728.5,2728.4,0.73301]
[1740034143657,0.5548,2728.6,2728.3,1.1622]
[1740034143862,0.5548,2728.6,2728.5,0.73298]
[1740034144060,0.5548,2728.6,2728.3,1.30742]
[1740034144254,1.1222,2728.5,2728.2,2.355]
[1740034144561,1.1222,2728.5,2728.3,2.355]
[1740034144953,1.1222,2728.5,2728.4,0.73301]
[1740034145259,0.5548,2728.6,2728.5,0.73298]
[1740034145759,0.5548,2728.6,2728.4,0.5878]
[1740034145965,0.5548,2728.6,2728.5,0.73298]
[1740034146862,0.5548,2728.6,2728.5,1.30688]
[1740034147557,0.5548,2728.6,2728.3,5.5628]
[1740034147860,0.5548,2728.6,2728.0,1.30701]
[1740034148062,3.2078,2728.4,2728.1,2.355]
[1740034148363,1.0798,2728.3,2728.1,3.08808]
[1740034148756,0.538,2728.2,2728.1,3.08808]
[1740034150661,3.2078,2728.7,2728.1,2.355]
[1740034150864,1.108,2728.6,2728.2,0.5595]
[1740034151058,1.108,2728.6,2728.3,0.73304]
[1740034151258,1.108,2728.6,2728.1,2.355]
[1740034151465,1.108,2728.6,2728.3,0.73302]
[1740034151758,1.108,2728.6,2728.1,2.355]
[1740034152164,1.108,2728.6,2728.3,0.73302]
[1740034152368,1.108,2728.6,2728.1,2.355]
[1740034152564,1.108,2728.6,2728.3,0.73302]
[1740034152760,1.84097,2728.6,2728.1,2.355]
[1740034152962,3.2078,2728.4,2728.1,2.355]
[1740034153668,3.2078,2728.4,2728.1,3.08808]
[1740034154071,3.2078,2728.4,2728.2,0.73306]
[1740034155063,3.2078,2728.4,2728.1,2.355]
[1740034155572,3.2078,2728.4,2728.2,0.73306]
[1740034156362,3.2078,2728.4,2728.1,2.355]
[1740034156566,3.2078,2728.4,2728.1,3.08808]
[1740034157169,3.2078,2728.4,2728.1,2.355]
[1740034157372,3.2078,2728.4,2728.2,0.73306]
[1740034157675,3.2078,2728.4,2728.2,0.73305]
[1740034158169,3.2078,2728.4,2727.9,0.5595]
[1740034158365,3.2078,2728.1,2727.9,2.355]
[1740034158564,1.7044,2728.0,2727.9,2.355]
[1740034159862,1.7044,2728.0,2727.8,0.73317]
[1740034160870,1.7044,2728.0,2727.7,43.155]
[1740034161274,1.7044,2728.0,2727.9,0.73315]
[1740034161668,1.7044,2728.0,2727.8,0.73316]
[1740034161877,1.7044,2728.0,2727.7,43.7037]
[1740034162173,1.7044,2728.0,2727.9,0.73315]
[1740034162370,1.1411,2728.0,2727.9,0.73315]
[1740034162771,3.2078,2728.1,2728.0,0.73312]
[1740034163170,3.2078,2728.5,2727.8,0.5848]
[1740034163373,3.94079,2728.5,2728.0,0.73311]
[1740034163578,1.27012,2728.4,2728.1,2.355]
[1740034163778,1.1442,2728.3,2728.1,2.355]
[1740034164877,1.1442,2728.3,2728.1,3.08809]
[1740034165673,0.5678,2728.3,2728.1,2.355]
[1740034165975,0.5678,2728.3,2728.2,0.73306]
[1740034166273,0.5678,2728.3,2728.2,1.88886]
[1740034168480,3.2078,2728.5,2728.2,1.1558]
[1740034168778,3.2078,2728.5,2728.4,0.73301]
[1740034169481,1.678,2728.7,2728.4,0.73301]
[1740034169873,1.678,2728.7,2728.2,1.699]
[1740034170377,1.678,2728.7,2728.4,0.73299]
[1740034170573,1.678,2728.7,2728.2,1.699]
[1740034171376,1.678,2728.7,2728.4,0.73299]
[1740034171576,1.678,2728.7,2728.2,1.699]
[1740034171769,1.678,2728.7,2728.3,0.73302]
[1740034172279,1.678,2728.7,2728.2,1.699]
[1740034172579,1.678,2728.7,2728.5,0.73298]
[1740034173177,1.678,2728.7,2728.4,0.73299]
[1740034173576,1.678,2728.7,2728.6,0.73296]
[1740034173771,1.1016,2728.7,2728.6,0.73296]
[1740034174278,1.1016,2728.7,2728.6,1.29496]
[1740034174677,3.2078,2728.8,2728.6,0.562]
[1740034174883,3.2078,2728.8,2728.7,1.27823]
[1740034175582,3.2078,2728.8,2728.7,0.5453]
[1740034176482,3.2078,2728.8,2728.7,1.27823]
[1740034178985,3.2078,2728.8,2728.7,1.85643]
[1740034180483,3.2078,2728.8,2728.7,42.65643]
[1740034181881,15.72226065,2729.0,2728.9,0.73288]
[1740034182077,15.72226065,2729.0,2728.7,41.9235]
[1740034182282,15.72226065,2729.0,2728.8,0.73288]
[1740034184194,15.72226065,2729.0,2728.6,0.562]
[1740034184488,1.0914,2728.9,2728.7,2.354]
[1740034184891,1.0914,2728.9,2728.8,0.7329]
[1740034185889,1.0914,2728.9,2728.7,3.64832]
[1740034187493,1.0914,2728.9,2728.7,3.64831]
[1740034187694,0.5408,2728.9,2728.8,0.7329]
[1740034188195,0.5408,2728.9,2728.7,3.64831]
[1740034188388,0.5408,2728.9,2728.8,2.354]
[1740034192590,0.5408,2728.9,2728.8,3.0869]
[1740034196900,15.72226065,2729.0,2728.9,0.73288]
[1740034198596,15.72226065,2729.0,2728.8,2.354]
[1740034198987,16.28076065,2729.0,2728.8,3.0869]
[1740034199497,16.28076065,2729.0,2728.8,2.354]
[1740034200100,16.28076065,2729.0,2728.6,43.154]
[1740034200308,16.28076065,2729.0,2728.4,3.2078]
[1740034200605,3.2078,2728.8,2728.4,2.354]
[1740034200804,0.546,2728.7,2728.4,43.154]
[1740034200999,1.1252,2728.7,2728.4,43.154]
[1740034202899,1.1252,2728.7,2728.4,2.354]
[1740034204901,1.1252,2728.7,2728.1,0.73308]
[1740034205097,0.73297,2728.6,2728.2,2.354]
[1740034205297,0.5591,2728.5,2728.2,2.354]
[1740034205505,0.5591,2728.5,2728.3,40.8]
[1740034207209,3.2078,2728.4,2728.0,3.2078]
[1740034207408,1.83694,2728.3,2728.0,5.5618]
[1740034207706,1.83694,2728.3,2728.1,40.8]
[1740034207905,1.1039,2728.3,2728.1,40.8]
[1740034208305,1.1039,2728.3,2728.0,6.29491]
[1740034208898,1.1039,2728.3,2728.0,5.5618]
[1740034209308,1.1039,2728.3,2728.0,3.2078]
[1740034209609,1.83694,2728.3,2728.0,3.2078]
[1740034209803,1.83694,2728.3,2727.9,3.65263]
[1740034210301,1.1039,2728.3,2727.9,3.65263]
[1740034210910,1.1039,2728.3,2727.9,2.9195]
[1740034212413,3.2078,2728.4,2728.3,0.73304]
[1740034212710,3.2078,2728.4,2728.3,3.08704]
[1740034214708,3.2078,2728.7,2728.3,2.354]
[1740034214913,3.2078,2728.7,2728.6,0.73296]
[1740034215710,15.72226065,2729.0,2728.9,0.73288]
[1740034215910,15.72226065,2729.0,2728.9,3.08688]
[1740034216704,15.72226065,2729.0,2728.9,3.38071709]
[1740034217708,15.72226065,2729.0,2728.9,3.08688]
[1740034219514,15.72226065,2729.0,2728.9,3.38474588]
[1740034219719,15.72226065,2729.0,2728.9,3.08688]
[1740034222319,15.72226065,2729.0,2728.9,3.37895354]
[1740034222825,0.0054932,2729.2,2729.1,0.73282]
[1740034224627,0.0054932,2729.2,2729.0,1.83694]
[1740034225824,0.0054932,2729.2,2729.0,1.1041]
[1740034226026,0.0054932,2729.2,2729.1,0.73282]
[1740034226718,0.0054932,2729.2,2729.0,2.354]
[1740034226927,0.0054932,2729.2,2729.1,0.73282]
[1740034227127,0.0054932,2729.2,2729.1,1.30222]
[1740034228829,15.72226065,2729.4,2729.3,0.73277]
[1740034229529,15.72226065,2729.4,2729.1,1.1277]
[1740034229725,15.72226065,2729.4,2729.2,0.73278]
[1740034229925,15.72226065,2729.4,2729.1,0.5694]
[1740034230128,15.72226065,2729.4,2729.0,1.2727232]
[1740034230431,18.93006065,2729.4,2729.1,2.354]
[1740034232227,18.93006065,2729.4,2729.0,0.5398932]
[1740034232426,18.93006065,2729.4,2729.1,3.08682]
[1740034233335,15.72226065,2729.4,2729.1,3.08682]
[1740034233625,15.72226065,2729.4,2729.1,2.354]
[1740034233832,15.72226065,2729.4,2729.2,0.7328]
[1740034235624,15.72226065,2729.4,2729.3,0.73277]
[1740034236227,15.72226065,2729.4,2729.3,1.31897]
[1740034237931,15.72226065,2729.4,2729.3,1.89407]
[1740034238521,15.72226065,2729.4,2729.3,0.73277]
[1740034247141,15.72226065,2729.4,2729.2,3.2078]
[1740034247343,15.72226065,2729.4,2729.3,2.353]
[1740034249436,15.72226065,2729.4,2729.2,3.2078]
[1740034249741,18.93006065,2729.4,2729.0,0.0054932]
[1740034250041,0.73278,2729.3,2729.0,2.3584932]
[1740034250244,0.73286,2729.0,2728.6,3.2078]
[1740034250441,1.1601,2728.9,2728.6,3.2078]
[1740034250840,1.1601,2728.9,2728.6,44.0078]
[1740034251746,3.2078,2729.1,2728.8,0.7329]
[1740034251948,3.2078,2729.1,2728.9,2.8901]
[1740034254848,3.2078,2729.1,2728.9,2.353]
[1740034257449,0.553,2729.2,2728.9,2.353]
[1740034257649,0.553,2729.2,2728.9,3.08587]
[1740034257839,0.553,2729.2,2728.9,2.353]
[1740034262554,0.553,2729.2,2728.8,0.7329]
[1740034262752,0.553,2729.2,2729.0,2.353]
[1740034264953,0.553,2729.2,2729.0,3.08585]
[1740034265153,0.553,2729.2,2729.0,2.353]
[1740034270258,0.553,2729.2,2729.1,0.5683]
[1740034270458,0.553,2729.2,2729.1,1.30112]
[1740034270659,0.573,2729.3,2729.2,0.7328]
[1740034270865,15.72226065,2729.4,2729.3,0.73277]
[1740034272461,15.72226065,2729.4,2729.2,0.5571]
[1740034272762,15.72226065,2729.4,2729.3,0.73277]
[1740034273160,15.72226065,2729.4,2729.2,1.28988]
[1740034273360,15.72226065,2729.4,2729.2,0.5571]
[1740034273965,16.25736065,2729.4,2729.2,0.5571]
[1740034275060,16.25736065,2729.4,2729.2,1.2899]
[1740034275261,15.72226065,2729.4,2729.2,0.5571]
[1740034275463,15.72226065,2729.4,2729.3,0.73277]
[1740034275667,15.72226065,2729.4,2729.2,1.28988]
[1740034278765,15.72226065,2729.4,2729.3,0.73277]
[1740034279273,15.50891352,2729.4,2729.3,0.73277]
[1740034280274,14.85803952,2729.4,2729.3,0.73277]
[1740034280874,3.2132932,2729.6,2729.2,0.5571]
[1740034281070,3.2132932,2729.6,2729.5,0.73272]
[1740034281373,3.2132932,2729.6,2729.5,3.08572]
[1740034283175,3.2132932,2729.6,2729.5,2.353]
[1740034283376,3.2132932,2729.6,2729.2,1.28988]
[1740034283578,1.1242,2729.5,2729.3,2.353]
[1740034283774,1.1242,2729.5,2729.4,2.353]
[1740034283966,1.85692,2729.5,2729.4,2.353]
[1740034284371,1.1242,2729.5,2729.4,2.353]
[1740034285579,1.1242,2729.5,2729.2,2.353]
[1740034286380,1.1242,2729.5,2729.2,3.08579]
[1740034286979,0.5454,2729.5,2729.2,2.353]
[1740034290279,16.33767288,2729.5,2729.2,2.353]
[1740034290780,16.33767288,2729.5,2729.2,3.0858]
[1740034291080,16.33767288,2729.5,2729.2,2.353]
[1740034293283,17.07039288,2729.5,2729.2,2.353]
[1740034294373,16.33767288,2729.5,2729.2,2.353]
[1740034295478,17.07039288,2729.5,2729.2,2.353]
[1740034295884,16.33767288,2729.5,2729.2,2.353]
[1740034296786,17.07039288,2729.5,2729.2,2.353]
[1740034297278,16.33767288,2729.5,2729.2,2.353]
[1740034297480,16.33767288,2729.5,2729.4,0.73274]
[1740034297674,15.79227288,2729.5,2729.4,0.73274]
[1740034298283,15.79227288,2729.5,2729.4,1.29394]
[1740034302698,16.34087288,2729.5,2729.4,0.73274]
[1740034305792,15.79227288,2729.5,2729.4,0.73274]
[1740034305994,3.28956926,2729.5,2729.4,4.48464]
[1740034306196,2.33753926,2729.5,2729.4,4.48464]
[1740034306494,0.0054932,2729.6,2729.5,0.73272]
[1740034306796,0.0054932,2729.6,2729.5,42.07892]
[1740034307695,1.159,2730.1,2729.8,0.73261]
[1740034307892,1.159,2730.1,2729.9,4.17361]
[1740034308090,1.159,2730.1,2730.0,2.353]
[1740034313701,1.159,2730.1,2729.8,2.352]
[1740034314002,0.5885,2730.0,2729.8,2.352]
[1740034314800,0.5885,2730.0,2729.7,2.352]
[1740034315197,1.32109,2730.0,2729.7,2.352]
[1740034315807,1.3211,2730.0,2729.7,2.352]
[1740034315996,0.5885,2730.0,2729.7,2.352]
[1740034316899,1.32109,2730.0,2729.7,2.352]
[1740034317202,0.73261,2729.9,2729.7,2.352]
[1740034319299,2.21427,2730.0,2729.7,2.352]
[1740034319504,0.73261,2729.9,2729.7,2.352]
[1740034319806,2.94687,2730.0,2729.7,2.352]
[1740034320000,2.21427,2730.0,2729.7,2.352]
[1740034320207,0.73262,2729.9,2729.7,2.352]
[1740034321504,0.73263,2729.9,2729.7,2.352]
[1740034322007,0.73263,2729.9,2729.4,3.2078]
[1740034322008,3.2078,2729.9,2729.4,3.2078]
[1740034322200,3.2078,2729.9,2729.1,3.2078]
[1740034322396,0.73275,2729.4,2729.0,4.18493]
[1740034322600,1.6362,2729.3,2729.0,4.18493]
[1740034322806,1.6362,2729.3,2729.0,1.1001]
[1740034323011,1.6362,2729.3,2728.9,2.352]
[1740034323309,1.6362,2729.3,2728.9,3.08486]
[1740034323809,2.36897,2729.3,2728.9,3.08486]
[1740034324007,2.36897,2729.3,2728.9,2.352]
[1740034325108,3.2078,2729.2,2728.9,2.352]
[1740034325308,3.2078,2729.2,2728.7,3.2078]
[1740034325599,0.73289,2728.9,2728.6,2.353]
[1740034325809,1.1443,2728.8,2728.6,2.353]
[1740034326012,1.7171,2728.8,2728.6,2.353]
[1740034328808,2.45,2728.8,2728.6,2.353]
[1740034329004,0.73294,2728.7,2728.5,0.0054932]
[1740034329505,0.73296,2728.6,2728.5,0.0054932]
[1740034329907,0.73296,2728.6,2728.3,2.353]
[1740034329908,6.0,2728.6,2727.9,0.29676918]
[1740034330111,0.73305,2728.3,2727.8,6.29397]
[1740034330313,1.7067,2728.2,2727.8,5.5608]
[1740034331716,1.7067,2728.2,2727.8,3.2078]
[1740034331918,1.7067,2728.2,2727.8,5.5608]
[1740034333708,1.1341,2728.2,2727.8,5.5608]
[1740034334611,1.1341,2728.2,2727.8,6.29396]
[1740034336418,0.5695,2728.2,2727.8,6.29396]
[1740034336620,0.5695,2728.2,2727.9,0.5867]
[1740034336824,0.5695,2728.2,2728.0,0.5456]
[1740034345125,1.30257,2728.2,2728.0,0.5456]
[1740034345522,0.5695,2728.2,2728.0,0.5456]
[1740034345827,0.5695,2728.2,2727.8,5.5608]
[1740034345828,0.73313,2728.0,2727.8,3.2078]
[1740034346032,1.62577,2728.1,2727.8,3.2078]
[1740034346329,1.30126,2727.9,2727.7,0.0054932]
[1740034347122,0.5681,2727.9,2727.7,0.0054932]
[1740034348033,1.30125,2727.9,2727.7,0.0054932]
[1740034348831,0.5786,2727.8,2727.7,0.0054932]
[1740034350933,1.1157,2727.8,2727.7,0.0054932]
[1740034352036,1.84887,2727.8,2727.7,0.0054932]
[1740034352334,1.1157,2727.8,2727.7,0.0054932]
[1740034358639,3.2078,2727.9,2727.7,0.7386932]
[1740034358839,3.2078,2727.9,2727.8,0.5822]
[1740034359232,3.2078,2727.9,2727.8,41.3822]
[1740034359839,3.2078,2727.9,2727.8,0.5822]
[1740034360442,1.62577,2728.1,2727.8,41.3822]
[1740034360742,1.62577,2728.1,2727.9,1.89973]
[1740034361840,1.62577,2728.1,2727.9,1.1666]
[1740034362039,1.62577,2728.1,2728.0,0.73312]
[1740034362742,3.2078,2728.2,2728.0,0.73312]
[1740034362936,3.2078,2728.2,2727.9,3.5206]
[1740034363144,3.2078,2728.2,2728.1,0.73309]
[1740034364242,3.2078,2728.2,2727.9,3.5206]
[1740034364443,3.2078,2728.2,2728.1,0.73309]
[1740034366641,1.1141,2728.8,2728.0,3.2078]
[1740034366842,1.1141,2728.8,2728.3,3.2078]
[1740034367032,1.1141,2728.8,2728.5,0.73298]
[1740034367231,1.1141,2728.8,2728.4,4.74459]
[1740034367542,1.1141,2728.8,2728.6,0.73295]
[1740034368639,1.1141,2728.8,2728.6,0.73294]
[1740034368944,0.5466,2728.8,2728.6,1.03263901]
[1740034369142,3.7461,2729.0,2728.8,0.7329]
[1740034369347,3.7461,2729.0,2728.7,0.73292]
[1740034369546,3.2078,2729.0,2728.6,0.73295]
[1740034369756,3.2078,2729.0,2728.7,0.73292]
[1740034369943,3.2078,2729.0,2728.8,2.353]
[1740034370149,3.2078,2729.0,2728.8,3.0859]
[1740034370454,3.2078,2729.0,2728.8,2.353]
[1740034371053,3.2078,2729.0,2728.8,2.921]
[1740034372248,3.2078,2729.0,2728.8,3.6539]
[1740034375860,3.2078,2729.0,2728.8,44.4539]
[1740034378259,0.5879,2729.1,2728.8,44.4539]
[1740034378462,4.3349,2729.3,2728.8,44.4539]
[1740034378658,4.3349,2729.3,2729.1,0.73281]
[1740034378858,4.3349,2729.3,2729.2,3.5246]
[1740034379559,1.1271,2729.3,2729.2,3.5246]
[1740034379764,1.1271,2729.3,2729.2,4.2574]
[1740034380358,0.0054932,2729.5,2729.4,0.73274]
[1740034386165,1.1174136,2729.8,2729.2,6.7378932]
[1740034386364,1.1119204,2729.8,2729.7,0.73266]
[1740034386568,1.1119204,2729.8,2729.7,3.08466]
[1740034388060,0.5767,2730.2,2730.1,0.73255]
[1740034388266,0.5767,2730.2,2730.0,0.73257]
[1740034388470,0.5767,2730.2,2730.1,0.73255]
[1740034389061,0.5767,2730.2,2729.7,2.9332]
[1740034389266,0.5767,2730.2,2729.9,0.73258]
[1740034389568,0.5844,2730.1,2729.9,0.73258]
[1740034389869,0.5844,2730.1,2729.7,2.9332]
[1740034390062,0.5844,2730.1,2730.0,0.73258]
[1740034390661,0.5844,2730.1,2729.7,2.9332]
[1740034390963,0.5844,2730.1,2729.9,0.73259]
[1740034391972,0.5844,2730.1,2729.7,2.9332]
[1740034392174,0.5844,2730.1,2729.9,0.7326]
[1740034392367,0.5844,2730.1,2729.7,2.9332]
[1740034392568,0.5844,2730.1,2729.9,0.7326]
[1740034393267,1.1592,2730.1,2729.9,0.7326]
[1740034393770,1.1592,2730.1,2730.0,0.73258]
[1740034393971,1.1592,2730.1,2729.7,4.76485]
[1740034393972,3.2078,2730.3,2729.8,1.83159]
[1740034394175,3.2078,2730.3,2730.2,0.73253]
[1740034394367,3.2078,2730.3,2730.2,43.88453]
[1740034394563,3.2078,2730.3,2730.2,40.8]
[1740034394767,3.2078,2730.3,2730.1,2.351]
[1740034395274,3.2078,2730.3,2730.2,40.8]
[1740034395671,0.0054932,2730.4,2730.2,40.8]
[1740034395973,3.4810153,2731.0,2730.7,0.73238]
[1740034396164,3.4810153,2731.0,2730.5,3.08344]
[1740034396368,3.4810153,2731.0,2730.5,3.3789576]
[1740034396773,3.4810153,2731.0,2730.5,2.6465176]
[1740034396979,3.48467742,2731.0,2730.5,3.3789476]
[1740034397276,1.1267,2730.8,2730.5,3.3789476]
[1740034397675,1.1267,2730.8,2730.5,2.6465176]
[1740034397878,1.1267,2730.8,2730.7,0.73239]
[1740034398067,1.1267,2730.8,2730.6,0.5853]
[1740034398268,1.1267,2730.8,2730.6,1.31771]
[1740034398577,1.1267,2730.8,2730.6,0.5853]
[1740034399479,1.1267,2730.8,2730.6,1.3177]